[Event "December 12 Early 2023"]
[Site "https://www.chess.com"]
[Date "2023.12.12"]
[Round "7"]
[White "Shuvalov, Evgenij"]
[Black "Bazyrtsyrenov, Kirill"]
[Result "0-1"]
[Board "51"]
[TimeControl "180+1"]
[WhiteFideId "4187237"]
[BlackFideId "24215872"]
[WhiteElo "2576"]
[BlackElo "2746"]
[WhiteTeam "FID"]
[BlackTeam "RUS"]
[WhiteClock "0:00:00"]
[BlackClock "0:00:07"]

1. d4 {[%clk 0:03:00]}  Nf6 {[%clk 0:02:51]} 2. c4 {[%clk 0:03:00]}  Nc6 {[%clk 0:02:51]} 3. Nf3 {[%clk 0:02:59]}  e6 {[%clk 0:02:51]} 4. a3 {[%clk 0:02:59]}  d6 {[%clk 0:02:51]} 5. Nc3 {[%clk 0:02:58]}  g6 {[%clk 0:02:51]} 6. e4 {[%clk 0:02:58]}  Bg7 {[%clk 0:02:51]} 7. Be2 {[%clk 0:02:58]}  O-O {[%clk 0:02:51]} 8. O-O {[%clk 0:02:58]}  e5 {[%clk 0:02:49]} 9. d5 {[%clk 0:02:58]}  Ne7 {[%clk 0:02:43]} 10. Ne1 {[%clk 0:02:57]}  h6 {[%clk 0:02:39]} 11. Nd3 {[%clk 0:02:50]}  Nh7 {[%clk 0:02:38]} 12. c5 {[%clk 0:02:47]}  f5 {[%clk 0:02:38]} 13. f3 {[%clk 0:02:44]}  g5 {[%clk 0:02:37]} 14. b4 {[%clk 0:02:39]}  f4 {[%clk 0:02:34]} 15. a4 {[%clk 0:02:32]}  Ng6 {[%clk 0:02:32]} 16. Ba3 {[%clk 0:02:31]}  Rf7 {[%clk 0:02:31]} 17. b5 {[%clk 0:02:29]}  Bf8 {[%clk 0:02:31]} 18. a5 {[%clk 0:02:25]}  h5 {[%clk 0:02:28]} 19. b6 {[%clk 0:02:21]}  cxb6 {[%clk 0:02:16]} 20. axb6 {[%clk 0:02:18]}  Nf6 {[%clk 0:02:02]} 21. Nb5 {[%clk 0:02:08]}  axb6 {[%clk 0:01:56]} 22. cxd6 {[%clk 0:02:03]}  Ra5 {[%clk 0:01:30]} 23. Qb3 {[%clk 0:01:45]}  g4 {[%clk 0:01:28]} 24. Rfc1 {[%clk 0:01:31]}  g3 {[%clk 0:01:14]} 25. h3 {[%clk 0:01:31]}  Ne8 {[%clk 0:00:58]} 26. Rxc8 {[%clk 0:00:55]}  Qxc8 {[%clk 0:00:57]} 27. Rc1 {[%clk 0:00:56]}  Qd7 {[%clk 0:00:53]} 28. Nc7 {[%clk 0:00:43]}  Rxa3 {[%clk 0:00:53]} 29. Qxa3 {[%clk 0:00:41]}  Bxd6 {[%clk 0:00:53]} 30. Qa8 {[%clk 0:00:37]}  Bxc7 {[%clk 0:00:52]} 31. Rxc7 {[%clk 0:00:32]}  Qxc7 {[%clk 0:00:51]} 32. Qxe8+ {[%clk 0:00:32]}  Kg7 {[%clk 0:00:51]} 33. Bf1 {[%clk 0:00:17]}  Qc3 {[%clk 0:00:44]} 34. d6 {[%clk 0:00:15]}  Qd4+ {[%clk 0:00:44]} 35. Kh1 {[%clk 0:00:13]}  Qxd6 {[%clk 0:00:45]} 36. Qb5 {[%clk 0:00:11]}  Rc7 {[%clk 0:00:44]} 37. Qb1 {[%clk 0:00:11]}  Qd4 {[%clk 0:00:44]} 38. Nb4 {[%clk 0:00:08]}  Qd2 {[%clk 0:00:40]} 39. Nd3 {[%clk 0:00:07]}  Kh6 {[%clk 0:00:25]} 40. Qxb6 {[%clk 0:00:05]}  Rc1 {[%clk 0:00:22]} 41. Nxc1 {[%clk 0:00:04]}  Qxc1 {[%clk 0:00:22]} 42. Qg1 {[%clk 0:00:05]}  Kg5 {[%clk 0:00:13]} 43. Bb5 {[%clk 0:00:04]}  Qxg1+ {[%clk 0:00:07]} 44. Kxg1 {[%clk 0:00:05]}  Nh4 {[%clk 0:00:06]} 45. Kf1 {[%clk 0:00:05]}  Kf6 {[%clk 0:00:07]} 46. Be8 {[%clk 0:00:02]}  Ke7 {[%clk 0:00:07]} 47. Bxh5 {[%clk 0:00:00]}  b5 {[%clk 0:00:07]} 0-1

[Event "December 12 Early 2023"]
[Site "https://www.chess.com"]
[Date "2023.12.12"]
[Round "7"]
[White "Womacka, Mathias"]
[Black "Mindlin, Alon"]
[Result "0-1"]
[Board "54"]
[TimeControl "180+1"]
[WhiteFideId "4611390"]
[BlackFideId "2800071"]
[WhiteElo "2530"]
[BlackElo "2736"]
[WhiteTeam "GER"]
[BlackTeam "ISR"]
[WhiteClock "0:00:04"]
[BlackClock "0:00:36"]

1. e4 {[%clk 0:03:00]}  e5 {[%clk 0:02:59]} 2. Nf3 {[%clk 0:03:01]}  Nc6 {[%clk 0:02:59]} 3. Bb5 {[%clk 0:03:01]}  a6 {[%clk 0:02:59]} 4. Bxc6 {[%clk 0:03:01]}  dxc6 {[%clk 0:02:59]} 5. O-O {[%clk 0:03:01]}  f6 {[%clk 0:03:00]} 6. d4 {[%clk 0:03:01]}  Bg4 {[%clk 0:02:58]} 7. c3 {[%clk 0:02:59]}  c5 {[%clk 0:02:46]} 8. d5 {[%clk 0:02:33]}  Bd6 {[%clk 0:02:42]} 9. Be3 {[%clk 0:02:32]}  Ne7 {[%clk 0:02:40]} 10. Nbd2 {[%clk 0:02:31]}  Qd7 {[%clk 0:02:38]} 11. h3 {[%clk 0:02:28]}  Bh5 {[%clk 0:02:37]} 12. Nxe5 {[%clk 0:02:24]}  Qxh3 {[%clk 0:02:33]} 13. gxh3 {[%clk 0:01:54]}  Bxd1 {[%clk 0:02:31]} 14. Raxd1 {[%clk 0:01:53]}  fxe5 {[%clk 0:02:29]} 15. f4 {[%clk 0:01:45]}  exf4 {[%clk 0:01:52]} 16. Bxf4 {[%clk 0:01:43]}  Ng6 {[%clk 0:01:45]} 17. Bxd6 {[%clk 0:01:33]}  cxd6 {[%clk 0:01:46]} 18. Nc4 {[%clk 0:01:23]}  Ke7 {[%clk 0:01:39]} 19. e5 {[%clk 0:01:13]}  Nxe5 {[%clk 0:01:25]} 20. Nxe5 {[%clk 0:01:12]}  dxe5 {[%clk 0:01:25]} 21. Rf5 {[%clk 0:01:00]}  Rae8 {[%clk 0:01:09]} 22. Rxe5+ {[%clk 0:00:59]}  Kd6 {[%clk 0:01:09]} 23. Rxe8 {[%clk 0:00:52]}  Rxe8 {[%clk 0:01:08]} 24. Kf2 {[%clk 0:00:52]}  c4 {[%clk 0:00:56]} 25. Rd4 {[%clk 0:00:46]}  b5 {[%clk 0:00:55]} 26. b3 {[%clk 0:00:45]}  Rc8 {[%clk 0:00:55]} 27. bxc4 {[%clk 0:00:19]}  Rxc4 {[%clk 0:00:54]} 28. Rxc4 {[%clk 0:00:16]}  bxc4 {[%clk 0:00:54]} 29. Ke3 {[%clk 0:00:17]}  Kxd5 {[%clk 0:00:53]} 30. Kf4 {[%clk 0:00:18]}  a5 {[%clk 0:00:41]} 31. a4 {[%clk 0:00:16]}  Ke6 {[%clk 0:00:34]} 32. Ke4 {[%clk 0:00:16]}  g5 {[%clk 0:00:34]} 33. Kd4 {[%clk 0:00:16]}  h5 {[%clk 0:00:35]} 34. Kxc4 {[%clk 0:00:14]}  g4 {[%clk 0:00:35]} 35. hxg4 {[%clk 0:00:14]}  h4 {[%clk 0:00:35]} 36. Kb5 {[%clk 0:00:10]}  h3 {[%clk 0:00:35]} 37. Kxa5 {[%clk 0:00:04]}  h2 {[%clk 0:00:36]} 0-1

[Event "December 12 Early 2023"]
[Site "https://www.chess.com"]
[Date "2023.12.12"]
[Round "7"]
[White "Krzyzanowski, Marcin"]
[Black "Reprintsev, Alexander"]
[Result "1-0"]
[Board "55"]
[TimeControl "180+1"]
[WhiteFideId "1132199"]
[BlackFideId "14100541"]
[WhiteElo "2731"]
[BlackElo "2520"]
[WhiteTeam "POL"]
[BlackTeam "UKR"]
[WhiteClock "0:01:17"]
[BlackClock "0:01:57"]

1. Nf3 {[%clk 0:03:00]}  d5 {[%clk 0:02:59]} 2. g3 {[%clk 0:03:00]}  Nc6 {[%clk 0:02:59]} 3. d4 {[%clk 0:02:59]}  Bf5 {[%clk 0:02:59]} 4. Bg2 {[%clk 0:02:53]}  Nb4 {[%clk 0:02:59]} 5. Na3 {[%clk 0:02:52]}  e6 {[%clk 0:02:59]} 6. O-O {[%clk 0:02:51]}  h6 {[%clk 0:02:59]} 7. c3 {[%clk 0:02:50]}  Nc6 {[%clk 0:02:59]} 8. Nc2 {[%clk 0:02:35]}  Bd6 {[%clk 0:02:57]} 9. c4 {[%clk 0:02:32]}  Nf6 {[%clk 0:02:48]} 10. Ne3 {[%clk 0:02:29]}  Bh7 {[%clk 0:02:46]} 11. cxd5 {[%clk 0:02:26]}  exd5 {[%clk 0:02:46]} 12. Qb3 {[%clk 0:02:01]}  Be4 {[%clk 0:02:15]} 13. Qxb7 {[%clk 0:01:51]}  Nb4 {[%clk 0:02:15]} 14. Qb5+ {[%clk 0:01:46]}  c6 {[%clk 0:02:11]} 15. Qa4 {[%clk 0:01:45]}  Qb6 {[%clk 0:01:59]} 16. Bd2 {[%clk 0:01:30]}  a6 {[%clk 0:01:59]} 17. a3 {[%clk 0:01:17]}  a5 {[%clk 0:01:57]} 18. axb4 {[%clk 0:01:17]} 1-0

[Event "December 12 Early 2023"]
[Site "https://www.chess.com"]
[Date "2023.12.12"]
[Round "7"]
[White "Arslanov, Shamil"]
[Black "Senft, Sean"]
[Result "1-0"]
[Board "56"]
[TimeControl "180+1"]
[WhiteFideId "4192826"]
[BlackFideId "2044960"]
[WhiteElo "2730"]
[BlackElo "2495"]
[WhiteTeam "RUS"]
[BlackTeam "USA"]
[WhiteClock "0:00:22"]
[BlackClock "0:01:27"]

1. d4 {[%clk 0:02:59]}  d5 {[%clk 0:03:00]} 2. e4 {[%clk 0:02:59]}  dxe4 {[%clk 0:03:00]} 3. Nc3 {[%clk 0:02:59]}  Nf6 {[%clk 0:02:59]} 4. f3 {[%clk 0:03:00]}  exf3 {[%clk 0:03:00]} 5. Nxf3 {[%clk 0:03:00]}  e6 {[%clk 0:02:56]} 6. Bg5 {[%clk 0:02:57]}  Be7 {[%clk 0:02:56]} 7. Bd3 {[%clk 0:02:58]}  Nbd7 {[%clk 0:02:56]} 8. O-O {[%clk 0:02:57]}  c6 {[%clk 0:02:54]} 9. Qe1 {[%clk 0:02:57]}  Nb6 {[%clk 0:02:49]} 10. Qh4 {[%clk 0:02:54]}  Nbd5 {[%clk 0:02:47]} 11. Ne5 {[%clk 0:02:44]}  h5 {[%clk 0:02:28]} 12. Rae1 {[%clk 0:02:27]}  Bd7 {[%clk 0:02:27]} 13. Kh1 {[%clk 0:01:02]}  Qc7 {[%clk 0:01:59]} 14. Nxd5 {[%clk 0:00:24]}  cxd5 {[%clk 0:01:52]} 15. Rxf6 {[%clk 0:00:24]}  gxf6 {[%clk 0:01:47]} 16. Bxf6 {[%clk 0:00:25]}  Bxf6 {[%clk 0:01:43]} 17. Qxf6 {[%clk 0:00:25]}  O-O {[%clk 0:01:27]} 18. Qg5+ {[%clk 0:00:22]} 1-0

[Event "December 12 Early 2023"]
[Site "https://www.chess.com"]
[Date "2023.12.12"]
[Round "7"]
[White "JG-17"]
[Black "Makhnev, Denis"]
[Result "0-1"]
[Board "58"]
[TimeControl "180+1"]
[BlackFideId "13707647"]
[WhiteElo "2482"]
[BlackElo "2698"]
[BlackTeam "KAZ"]
[WhiteClock "0:01:26"]
[BlackClock "0:01:26"]

1. e4 {[%clk 0:03:00]}  c6 {[%clk 0:02:58]} 2. d4 {[%clk 0:03:00]}  d5 {[%clk 0:02:58]} 3. exd5 {[%clk 0:03:01]}  cxd5 {[%clk 0:02:58]} 4. Bd3 {[%clk 0:03:01]}  Nc6 {[%clk 0:02:58]} 5. c3 {[%clk 0:03:02]}  Nf6 {[%clk 0:02:58]} 6. Bf4 {[%clk 0:03:02]}  Bg4 {[%clk 0:02:58]} 7. Qb3 {[%clk 0:03:02]}  Qd7 {[%clk 0:02:57]} 8. Nd2 {[%clk 0:03:02]}  e6 {[%clk 0:02:58]} 9. Ngf3 {[%clk 0:03:02]}  Bxf3 {[%clk 0:02:58]} 10. Nxf3 {[%clk 0:03:02]}  Bd6 {[%clk 0:02:58]} 11. Bxd6 {[%clk 0:03:03]}  Qxd6 {[%clk 0:02:59]} 12. O-O {[%clk 0:03:04]}  O-O {[%clk 0:02:59]} 13. Rfe1 {[%clk 0:03:04]}  Qc7 {[%clk 0:02:59]} 14. Ne5 {[%clk 0:03:04]}  Nxe5 {[%clk 0:02:59]} 15. dxe5 {[%clk 0:03:04]}  Nd7 {[%clk 0:02:59]} 16. Qd1 {[%clk 0:02:41]}  Nxe5 {[%clk 0:02:50]} 17. Bxh7+ {[%clk 0:02:37]}  Kxh7 {[%clk 0:02:51]} 18. Qh5+ {[%clk 0:02:37]}  Kg8 {[%clk 0:02:51]} 19. Qxe5 {[%clk 0:02:38]}  Qxe5 {[%clk 0:02:49]} 20. Rxe5 {[%clk 0:02:39]}  Rac8 {[%clk 0:02:48]} 21. Rd1 {[%clk 0:02:36]}  Rc4 {[%clk 0:02:47]} 22. g3 {[%clk 0:02:29]}  b5 {[%clk 0:02:45]} 23. f4 {[%clk 0:02:28]}  g6 {[%clk 0:02:45]} 24. Re3 {[%clk 0:02:20]}  Rfc8 {[%clk 0:02:42]} 25. Rdd3 {[%clk 0:02:19]}  a5 {[%clk 0:02:41]} 26. Kf2 {[%clk 0:02:13]}  b4 {[%clk 0:02:36]} 27. cxb4 {[%clk 0:02:13]}  Rxb4 {[%clk 0:02:30]} 28. Rd2 {[%clk 0:02:08]}  a4 {[%clk 0:02:28]} 29. Ree2 {[%clk 0:01:56]}  Rc1 {[%clk 0:02:24]} 30. Rc2 {[%clk 0:01:55]}  Ra1 {[%clk 0:02:23]} 31. a3 {[%clk 0:01:53]}  Rb3 {[%clk 0:02:10]} 32. Rc8+ {[%clk 0:01:53]}  Kg7 {[%clk 0:02:10]} 33. Ra8 {[%clk 0:01:54]}  Ra2 {[%clk 0:02:09]} 34. Rxa4 {[%clk 0:01:53]}  Rbxb2 {[%clk 0:02:10]} 35. Rxb2 {[%clk 0:01:53]}  Rxb2+ {[%clk 0:02:11]} 36. Kg1 {[%clk 0:01:51]}  Kf6 {[%clk 0:02:06]} 37. Ra7 {[%clk 0:01:47]}  Ra2 {[%clk 0:02:00]} 38. h3 {[%clk 0:01:46]}  d4 {[%clk 0:01:56]} 39. Rd7 {[%clk 0:01:44]}  Rxa3 {[%clk 0:01:55]} 40. Rxd4 {[%clk 0:01:43]}  Rxg3+ {[%clk 0:01:55]} 41. Kh2 {[%clk 0:01:43]}  Rc3 {[%clk 0:01:52]} 42. Kg2 {[%clk 0:01:38]}  Kf5 {[%clk 0:01:52]} 43. Rd7 {[%clk 0:01:39]}  f6 {[%clk 0:01:51]} 44. Rf7 {[%clk 0:01:35]}  Rc4 {[%clk 0:01:50]} 45. Kg3 {[%clk 0:01:34]}  Rxf4 {[%clk 0:01:43]} 46. Rxf6+ {[%clk 0:01:32]}  Kxf6 {[%clk 0:01:44]} 47. Kxf4 {[%clk 0:01:33]}  e5+ {[%clk 0:01:30]} 48. Kg4 {[%clk 0:01:31]}  g5 {[%clk 0:01:26]} 49. Kg3 {[%clk 0:01:27]}  Kf5 {[%clk 0:01:26]} 50. Kf3 {[%clk 0:01:27]}  e4+ {[%clk 0:01:26]} 51. Ke3 {[%clk 0:01:26]}  Ke5 {[%clk 0:01:26]} 0-1

[Event "December 12 Early 2023"]
[Site "https://www.chess.com"]
[Date "2023.12.12"]
[Round "7"]
[White "Volkov, Maksim"]
[Black "Zeneli, Klendi"]
[Result "0-1"]
[Board "59"]
[TimeControl "180+1"]
[WhiteFideId "54123070"]
[BlackFideId "4706609"]
[WhiteElo "2690"]
[BlackElo "2379"]
[WhiteTeam "RUS"]
[BlackTeam "ALB"]
[WhiteClock "0:00:06"]
[BlackClock "0:00:08"]

1. e4 {[%clk 0:03:00]}  e5 {[%clk 0:02:59]} 2. Nf3 {[%clk 0:03:00]}  Nc6 {[%clk 0:02:59]} 3. Bc4 {[%clk 0:03:00]}  Nf6 {[%clk 0:03:00]} 4. d3 {[%clk 0:03:01]}  Bc5 {[%clk 0:02:59]} 5. c3 {[%clk 0:03:01]}  d6 {[%clk 0:02:59]} 6. O-O {[%clk 0:03:00]}  a6 {[%clk 0:02:58]} 7. a4 {[%clk 0:02:58]}  Ba7 {[%clk 0:02:58]} 8. b4 {[%clk 0:02:57]}  O-O {[%clk 0:02:55]} 9. Nbd2 {[%clk 0:02:54]}  h6 {[%clk 0:02:51]} 10. Re1 {[%clk 0:02:51]}  Ng4 {[%clk 0:02:47]} 11. Re2 {[%clk 0:02:50]}  Kh8 {[%clk 0:02:47]} 12. h3 {[%clk 0:02:50]}  f5 {[%clk 0:02:47]} 13. Nf1 {[%clk 0:02:15]}  Nf6 {[%clk 0:02:40]} 14. Nh4 {[%clk 0:02:11]}  Qe8 {[%clk 0:02:19]} 15. exf5 {[%clk 0:02:09]}  Ne7 {[%clk 0:02:11]} 16. Ng3 {[%clk 0:02:09]}  Nh5 {[%clk 0:02:05]} 17. Nf1 {[%clk 0:01:25]}  Nxf5 {[%clk 0:01:43]} 18. Nxf5 {[%clk 0:01:24]}  Bxf5 {[%clk 0:01:44]} 19. Bd5 {[%clk 0:01:15]}  c6 {[%clk 0:01:35]} 20. Bf3 {[%clk 0:01:14]}  Bxh3 {[%clk 0:01:25]} 21. Bxh5 {[%clk 0:00:37]}  Qxh5 {[%clk 0:01:24]} 22. Be3 {[%clk 0:00:35]}  Bg4 {[%clk 0:01:13]} 23. f3 {[%clk 0:00:35]}  Rxf3 {[%clk 0:00:50]} 24. Bxa7 {[%clk 0:00:16]}  Rxf1+ {[%clk 0:00:38]} 25. Qxf1 {[%clk 0:00:16]}  Bxe2 {[%clk 0:00:37]} 26. Qf2 {[%clk 0:00:17]}  Bxd3 {[%clk 0:00:36]} 27. Be3 {[%clk 0:00:18]}  Kg8 {[%clk 0:00:33]} 28. Qd2 {[%clk 0:00:18]}  Qe2 {[%clk 0:00:32]} 29. Qxe2 {[%clk 0:00:19]}  Bxe2 {[%clk 0:00:32]} 30. Re1 {[%clk 0:00:19]}  Bc4 {[%clk 0:00:32]} 31. Rd1 {[%clk 0:00:19]}  d5 {[%clk 0:00:31]} 32. a5 {[%clk 0:00:18]}  Re8 {[%clk 0:00:30]} 33. Bc5 {[%clk 0:00:19]}  e4 {[%clk 0:00:30]} 34. Kf2 {[%clk 0:00:19]}  Re6 {[%clk 0:00:28]} 35. Ke3 {[%clk 0:00:19]}  Rg6 {[%clk 0:00:26]} 36. Kf2 {[%clk 0:00:20]}  Rg4 {[%clk 0:00:25]} 37. Bd4 {[%clk 0:00:19]}  g5 {[%clk 0:00:23]} 38. Rh1 {[%clk 0:00:20]}  Kh7 {[%clk 0:00:21]} 39. g3 {[%clk 0:00:20]}  Kg6 {[%clk 0:00:20]} 40. Be5 {[%clk 0:00:21]}  h5 {[%clk 0:00:20]} 41. Ke3 {[%clk 0:00:19]}  Kf5 {[%clk 0:00:20]} 42. Bc7 {[%clk 0:00:18]}  h4 {[%clk 0:00:19]} 43. gxh4 {[%clk 0:00:18]}  gxh4 {[%clk 0:00:18]} 44. Rh2 {[%clk 0:00:17]}  Kg5 {[%clk 0:00:18]} 45. Bd8+ {[%clk 0:00:16]}  Kh5 {[%clk 0:00:18]} 46. Kd4 {[%clk 0:00:17]}  Bf1 {[%clk 0:00:16]} 47. Rf2 {[%clk 0:00:16]}  Bg2 {[%clk 0:00:13]} 48. Rf5+ {[%clk 0:00:15]}  Kh6 {[%clk 0:00:13]} 49. Rf6+ {[%clk 0:00:16]}  Kg7 {[%clk 0:00:13]} 50. Rd6 {[%clk 0:00:11]}  h3 {[%clk 0:00:08]} 51. Rd7+ {[%clk 0:00:11]}  Kg6 {[%clk 0:00:08]} 52. Bc7 {[%clk 0:00:12]}  Rh4 {[%clk 0:00:07]} 53. Be5 {[%clk 0:00:11]}  h2 {[%clk 0:00:06]} 54. Bxh2 {[%clk 0:00:09]}  Rxh2 {[%clk 0:00:06]} 55. Rxb7 {[%clk 0:00:10]}  Bf3 {[%clk 0:00:06]} 56. Rc7 {[%clk 0:00:10]}  Rd2+ {[%clk 0:00:06]} 57. Kc5 {[%clk 0:00:10]}  e3 {[%clk 0:00:07]} 58. Rxc6+ {[%clk 0:00:10]}  Kf5 {[%clk 0:00:07]} 59. Rc8 {[%clk 0:00:10]}  e2 {[%clk 0:00:07]} 60. Rf8+ {[%clk 0:00:11]}  Kg4 {[%clk 0:00:07]} 61. Rg8+ {[%clk 0:00:11]}  Kf4 {[%clk 0:00:07]} 62. Rf8+ {[%clk 0:00:06]}  Ke3 {[%clk 0:00:08]} 0-1

[Event "December 12 Early 2023"]
[Site "https://www.chess.com"]
[Date "2023.12.12"]
[Round "7"]
[White "Gabrielian, Artur"]
[Black "Cordoba Roa, Angel Gabriel"]
[Result "1-0"]
[Board "61"]
[TimeControl "180+1"]
[WhiteFideId "4131002"]
[BlackFideId "3957624"]
[WhiteElo "2755"]
[BlackElo "2577"]
[WhiteTeam "RUS"]
[BlackTeam "COL"]
[WhiteClock "0:01:45"]
[BlackClock "0:01:31"]

1. e4 {[%clk 0:03:00]}  e5 {[%clk 0:02:56]} 2. Nf3 {[%clk 0:03:00]}  Nc6 {[%clk 0:02:57]} 3. Bb5 {[%clk 0:03:00]}  a6 {[%clk 0:02:57]} 4. Bxc6 {[%clk 0:03:00]}  dxc6 {[%clk 0:02:58]} 5. Nc3 {[%clk 0:03:00]}  Qf6 {[%clk 0:02:52]} 6. d4 {[%clk 0:02:57]}  exd4 {[%clk 0:02:49]} 7. Qxd4 {[%clk 0:02:57]}  Qg6 {[%clk 0:02:49]} 8. O-O {[%clk 0:02:45]}  Be6 {[%clk 0:02:46]} 9. Bf4 {[%clk 0:02:43]}  c5 {[%clk 0:02:40]} 10. Qe3 {[%clk 0:02:42]}  Bd6 {[%clk 0:02:36]} 11. Bxd6 {[%clk 0:02:33]}  cxd6 {[%clk 0:02:37]} 12. Rad1 {[%clk 0:02:33]}  Rd8 {[%clk 0:02:36]} 13. e5 {[%clk 0:02:29]}  Qxc2 {[%clk 0:02:29]} 14. Ne4 {[%clk 0:02:14]}  d5 {[%clk 0:02:13]} 15. Nd6+ {[%clk 0:02:13]}  Kf8 {[%clk 0:02:14]} 16. Rc1 {[%clk 0:02:10]}  Qxb2 {[%clk 0:02:01]} 17. Qxc5 {[%clk 0:02:09]}  Ne7 {[%clk 0:02:02]} 18. Rb1 {[%clk 0:02:01]}  Qxa2 {[%clk 0:01:40]} 19. Rxb7 {[%clk 0:02:00]}  g6 {[%clk 0:01:38]} 20. Nxf7 {[%clk 0:01:55]}  Re8 {[%clk 0:01:35]} 21. N7g5 {[%clk 0:01:51]}  Bg8 {[%clk 0:01:31]} 22. Qd6 {[%clk 0:01:45]} 1-0

[Event "December 12 Early 2023"]
[Site "https://www.chess.com"]
[Date "2023.12.12"]
[Round "7"]
[White "Goltseva, Ekaterina"]
[Black "Schnaider, Ilan"]
[Result "1-0"]
[Board "65"]
[TimeControl "180+1"]
[WhiteFideId "24173770"]
[BlackFideId "169013"]
[WhiteElo "2540"]
[BlackElo "2668"]
[WhiteTeam "RUS"]
[BlackTeam "ARG"]
[WhiteClock "0:00:10"]
[BlackClock "0:00:06"]

1. Nf3 {[%clk 0:03:00]}  Nf6 {[%clk 0:03:00]} 2. c4 {[%clk 0:02:59]}  g6 {[%clk 0:03:00]} 3. Nc3 {[%clk 0:02:59]}  Bg7 {[%clk 0:03:00]} 4. e4 {[%clk 0:02:59]}  e5 {[%clk 0:03:01]} 5. Nxe5 {[%clk 0:02:58]}  O-O {[%clk 0:03:01]} 6. Bd3 {[%clk 0:02:58]}  Re8 {[%clk 0:03:01]} 7. Nf3 {[%clk 0:02:58]}  d5 {[%clk 0:02:59]} 8. cxd5 {[%clk 0:02:55]}  Nxd5 {[%clk 0:02:59]} 9. O-O {[%clk 0:02:54]}  Nf4 {[%clk 0:02:49]} 10. Bc2 {[%clk 0:02:44]}  c5 {[%clk 0:02:42]} 11. d3 {[%clk 0:02:26]}  Ne6 {[%clk 0:02:42]} 12. Be3 {[%clk 0:02:23]}  Nc6 {[%clk 0:02:41]} 13. Ba4 {[%clk 0:02:18]}  Bd7 {[%clk 0:02:40]} 14. Rc1 {[%clk 0:02:14]}  Ncd4 {[%clk 0:02:38]} 15. Bxd7 {[%clk 0:02:12]}  Qxd7 {[%clk 0:02:39]} 16. Nd5 {[%clk 0:02:10]}  b6 {[%clk 0:02:36]} 17. b3 {[%clk 0:02:07]}  f5 {[%clk 0:02:34]} 18. Nxd4 {[%clk 0:02:01]}  Nxd4 {[%clk 0:02:32]} 19. f3 {[%clk 0:01:59]}  Qxd5 {[%clk 0:02:09]} 20. exd5 {[%clk 0:01:57]}  Rxe3 {[%clk 0:02:09]} 21. Re1 {[%clk 0:01:50]}  Bh6 {[%clk 0:02:05]} 22. Kh1 {[%clk 0:01:42]}  Rae8 {[%clk 0:01:57]} 23. Rxe3 {[%clk 0:01:39]}  Bxe3 {[%clk 0:01:56]} 24. Rb1 {[%clk 0:01:31]}  Kf7 {[%clk 0:01:50]} 25. b4 {[%clk 0:01:25]}  Bf2 {[%clk 0:01:36]} 26. Qa4 {[%clk 0:01:18]}  cxb4 {[%clk 0:01:12]} 27. d6 {[%clk 0:01:06]}  a5 {[%clk 0:00:54]} 28. Qd7+ {[%clk 0:00:58]}  Kf8 {[%clk 0:00:55]} 29. Qxh7 {[%clk 0:00:56]}  g5 {[%clk 0:00:17]} 30. Rc1 {[%clk 0:00:52]}  Nc6 {[%clk 0:00:10]} 31. g3 {[%clk 0:00:46]}  Bc5 {[%clk 0:00:08]} 32. d7 {[%clk 0:00:37]}  Rd8 {[%clk 0:00:08]} 33. Qxf5+ {[%clk 0:00:32]}  Ke7 {[%clk 0:00:08]} 34. Re1+ {[%clk 0:00:30]}  Kd6 {[%clk 0:00:09]} 35. Re6+ {[%clk 0:00:19]}  Kc7 {[%clk 0:00:08]} 36. Qf6 {[%clk 0:00:11]}  Nd4 {[%clk 0:00:07]} 37. Qe5+ {[%clk 0:00:10]}  Kxd7 {[%clk 0:00:06]} 38. Rg6 {[%clk 0:00:07]}  Re8 {[%clk 0:00:03]} 39. Rg7+ {[%clk 0:00:07]}  Be7 {[%clk 0:00:04]} 40. Qxd4+ {[%clk 0:00:06]}  Ke6 {[%clk 0:00:02]} 41. Qxb6+ {[%clk 0:00:05]}  Kf5 {[%clk 0:00:01]} 42. Qb5+ {[%clk 0:00:05]}  Kf6 {[%clk 0:00:01]} 43. Qxe8 {[%clk 0:00:06]}  Kxg7 {[%clk 0:00:01]} 44. Qxe7+ {[%clk 0:00:06]}  Kg6 {[%clk 0:00:02]} 45. Qc5 {[%clk 0:00:07]}  b3 {[%clk 0:00:03]} 46. axb3 {[%clk 0:00:07]}  a4 {[%clk 0:00:03]} 47. bxa4 {[%clk 0:00:07]}  Kh5 {[%clk 0:00:04]} 48. a5 {[%clk 0:00:07]}  Kh6 {[%clk 0:00:04]} 49. a6 {[%clk 0:00:08]}  g4 {[%clk 0:00:04]} 50. fxg4 {[%clk 0:00:08]}  Kg7 {[%clk 0:00:05]} 51. a7 {[%clk 0:00:08]}  Kf7 {[%clk 0:00:06]} 52. a8=Q {[%clk 0:00:08]}  Kg6 {[%clk 0:00:06]} 53. Qac6+ {[%clk 0:00:08]}  Kf7 {[%clk 0:00:05]} 54. Qa7+ {[%clk 0:00:09]}  Kf8 {[%clk 0:00:06]} 55. Qca8# {[%clk 0:00:10]} 1-0

[Event "December 12 Early 2023"]
[Site "https://www.chess.com"]
[Date "2023.12.12"]
[Round "7"]
[White "Derjabin, Ilja"]
[Black "BestStelker"]
[Result "0-1"]
[Board "68"]
[TimeControl "180+1"]
[WhiteFideId "14104768"]
[WhiteElo "2529"]
[BlackElo "2662"]
[WhiteTeam "UKR"]
[WhiteClock "0:00:00"]
[BlackClock "0:00:03"]

1. d4 {[%clk 0:03:00]}  Nf6 {[%clk 0:02:57]} 2. c4 {[%clk 0:03:00]}  e6 {[%clk 0:02:57]} 3. Nc3 {[%clk 0:03:00]}  d5 {[%clk 0:02:57]} 4. cxd5 {[%clk 0:03:00]}  exd5 {[%clk 0:02:58]} 5. Bg5 {[%clk 0:03:00]}  Be7 {[%clk 0:02:59]} 6. e3 {[%clk 0:03:00]}  O-O {[%clk 0:02:59]} 7. Bd3 {[%clk 0:03:01]}  c6 {[%clk 0:02:59]} 8. Qc2 {[%clk 0:03:01]}  Nbd7 {[%clk 0:02:58]} 9. Nge2 {[%clk 0:03:01]}  Re8 {[%clk 0:02:58]} 10. O-O {[%clk 0:03:00]}  Nf8 {[%clk 0:02:59]} 11. f3 {[%clk 0:02:59]}  Ne6 {[%clk 0:02:58]} 12. Bh4 {[%clk 0:02:59]}  g6 {[%clk 0:02:56]} 13. Rad1 {[%clk 0:02:57]}  Nh5 {[%clk 0:02:50]} 14. Bf2 {[%clk 0:02:57]}  a5 {[%clk 0:02:45]} 15. g4 {[%clk 0:02:51]}  Nf6 {[%clk 0:02:36]} 16. Ng3 {[%clk 0:02:49]}  c5 {[%clk 0:02:24]} 17. Bb5 {[%clk 0:02:41]}  Bd7 {[%clk 0:02:21]} 18. Bxd7 {[%clk 0:02:41]}  Qxd7 {[%clk 0:02:22]} 19. dxc5 {[%clk 0:02:36]}  Bxc5 {[%clk 0:02:22]} 20. Nge4 {[%clk 0:02:03]}  Nxe4 {[%clk 0:02:10]} 21. Nxe4 {[%clk 0:01:55]}  Be7 {[%clk 0:01:52]} 22. Nc3 {[%clk 0:01:53]}  d4 {[%clk 0:01:31]} 23. exd4 {[%clk 0:01:46]}  Ng5 {[%clk 0:01:25]} 24. Be3 {[%clk 0:01:35]}  Rac8 {[%clk 0:00:58]} 25. Kg2 {[%clk 0:01:31]}  Bf6 {[%clk 0:00:50]} 26. Bxg5 {[%clk 0:00:51]}  Bxg5 {[%clk 0:00:51]} 27. d5 {[%clk 0:00:42]}  Bf6 {[%clk 0:00:45]} 28. Qd3 {[%clk 0:00:39]}  Bxc3 {[%clk 0:00:23]} 29. bxc3 {[%clk 0:00:40]}  Qd6 {[%clk 0:00:24]} 30. c4 {[%clk 0:00:35]}  Rc5 {[%clk 0:00:22]} 31. Rfe1 {[%clk 0:00:34]}  Rec8 {[%clk 0:00:21]} 32. Re4 {[%clk 0:00:34]}  b5 {[%clk 0:00:13]} 33. cxb5 {[%clk 0:00:34]}  Rc3 {[%clk 0:00:10]} 34. Qd4 {[%clk 0:00:29]}  Qa3 {[%clk 0:00:05]} 35. d6 {[%clk 0:00:13]}  Qxa2+ {[%clk 0:00:05]} 36. Rd2 {[%clk 0:00:12]}  Rc2 {[%clk 0:00:06]} 37. Ree2 {[%clk 0:00:12]}  Rxd2 {[%clk 0:00:04]} 38. Rxd2 {[%clk 0:00:13]}  Qe6 {[%clk 0:00:02]} 39. d7 {[%clk 0:00:14]}  Rd8 {[%clk 0:00:02]} 40. b6 {[%clk 0:00:14]}  Qc6 {[%clk 0:00:02]} 41. Qe3 {[%clk 0:00:05]}  a4 {[%clk 0:00:01]} 42. Qe7 {[%clk 0:00:05]}  Qxb6 {[%clk 0:00:01]} 43. Qe8+ {[%clk 0:00:06]}  Kg7 {[%clk 0:00:02]} 44. Re2 {[%clk 0:00:05]}  a3 {[%clk 0:00:02]} 45. Qe5+ {[%clk 0:00:06]}  Kg8 {[%clk 0:00:02]} 46. Qe8+ {[%clk 0:00:06]}  Kg7 {[%clk 0:00:03]} 47. Qe7 {[%clk 0:00:06]}  Qf6 {[%clk 0:00:03]} 48. Qxa3 {[%clk 0:00:00]}  Rxd7 {[%clk 0:00:03]} 0-1